bitfinex-derivatives/quotes_BTCF0:USTF0_20251219
["timestamp","ask_amount","ask_price","bid_price","bid_amount"]
[1766148492528,1.8e-07,88155.0,88143.0,0.0113513]
[1766148493333,0.01135,88154.0,88138.0,0.011352]
[1766148493538,1.8e-07,88155.0,88138.0,0.011352]
[1766148493836,1.8e-07,88155.0,88140.0,0.0113517]
[1766148494226,0.01135008,88155.0,88137.0,0.00585018]
[1766148494431,1.8e-07,88155.0,88137.0,0.01720228]
[1766148494820,1.8e-07,88155.0,88137.0,0.00585018]
[1766148495027,0.0113505,88151.0,88138.0,0.00568]
[1766148495731,1.8e-07,88155.0,88138.0,0.00568]
[1766148495732,0.01135,88154.0,88138.0,0.00568]
[1766148499534,0.01135,88154.0,88139.0,0.0113519]
[1766148499740,1.8e-07,88155.0,88141.0,0.0113516]
[1766148499939,1.8e-07,88155.0,88138.0,0.00568]
[1766148500437,1.8e-07,88155.0,88145.0,0.0113511]
[1766148501440,0.00176018,88155.0,88138.0,0.00568]
[1766148501640,1.8e-07,88155.0,88138.0,0.00568]
[1766148501830,0.0113489,88163.0,88138.0,0.00568]
[1766148502032,0.00148,88157.0,88145.0,0.0113511]
[1766148502741,0.00148,88157.0,88138.0,0.00568]
[1766148502936,0.00148,88157.0,88145.0,0.011351]
[1766148503336,0.00148,88157.0,88147.0,0.0113508]
[1766148503533,0.00256,88157.0,88147.0,0.0113508]
[1766148503734,0.00256,88157.0,88149.0,0.0113506]
[1766148504937,0.0113489,88163.0,88138.0,0.00568]
[1766148505143,0.0298337,88162.0,88147.0,0.0113508]
[1766148505343,0.00568,88162.0,88147.0,0.0113508]
[1766148505545,0.00568,88162.0,88149.0,0.0113506]
[1766148505936,0.0113491,88161.0,88146.0,0.0113509]
[1766148506139,0.00568,88160.0,88146.0,0.0113509]
[1766148506645,0.0113496,88157.0,88142.0,0.0113514]
[1766148506846,0.00568,88160.0,88138.0,0.00568]
[1766148507234,0.0113497,88157.0,88138.0,0.00568]
[1766148507440,0.0170293,88160.0,88144.0,0.0113512]
[1766148508246,0.02417037,88159.0,88144.0,0.0113512]
[1766148508545,0.0170293,88160.0,88144.0,0.0113512]
[1766148508745,0.0113495,88158.0,88144.0,0.0113512]
[1766148509849,0.00568,88160.0,88144.0,0.0113512]
[1766148510038,0.02417386,88159.0,88144.0,0.0113512]
[1766148510237,0.00568,88160.0,88144.0,0.0113512]
[1766148510439,0.02417406,88159.0,88144.0,0.0113512]
[1766148510735,0.00568,88160.0,88144.0,0.0113512]
[1766148510934,0.02417831,88159.0,88144.0,0.0113512]
[1766148511134,0.00568,88160.0,88144.0,0.0113512]
[1766148511338,0.02417976,88159.0,88144.0,0.0113512]
[1766148511541,0.00568,88160.0,88146.0,0.011351]
[1766148511851,0.0113493,88159.0,88146.0,0.011351]
[1766148512040,0.00568,88160.0,88146.0,0.011351]
[1766148512240,0.02417551,88159.0,88146.0,0.011351]
[1766148512440,0.0170292,88160.0,88146.0,0.011351]
[1766148512651,0.02417583,88159.0,88140.0,0.0113518]
[1766148512947,0.00568,88160.0,88140.0,0.0113518]
[1766148513147,0.00568,88160.0,88150.0,0.0113505]
[1766148514747,0.0113474,88174.0,88152.0,0.0113502]
[1766148514958,0.0113483,88168.0,88152.0,0.0113502]
[1766148515252,0.0113483,88168.0,88141.0,0.0113516]
[1766148515253,0.02417722,88167.0,88154.0,0.0113499]
[1766148515549,0.02417722,88167.0,88151.0,0.00017018]
[1766148515755,0.00568,88167.0,88151.0,0.00017018]
[1766148516250,0.00568,88167.0,88157.0,0.0113495]
[1766148516451,0.00568,88167.0,88151.0,0.00017018]
[1766148517048,0.06090362,88196.0,88157.0,0.51029254]
[1766148517253,0.02983955,88195.0,88170.0,0.51029254]
[1766148517548,0.02415955,88194.0,88178.0,0.0113468]
[1766148517738,0.0170248,88195.0,88178.0,0.0113468]
[1766148518752,0.0113452,88192.0,88176.0,0.0113471]
[1766148519748,0.0170248,88195.0,88176.0,0.0113471]
[1766148519951,0.0170248,88195.0,88171.0,0.00568]
[1766148519952,0.0170248,88195.0,88178.0,0.0113468]
[1766148520149,0.0170248,88195.0,88171.0,0.00568]
[1766148520150,0.00568,88195.0,88171.0,0.00568]
[1766148520454,0.0113448,88194.0,88171.0,0.00568]
[1766148520751,0.011345,88193.0,88177.0,0.011347]
[1766148521451,0.0113453,88191.0,88171.0,0.00568]
[1766148521650,0.0113449,88194.0,88177.0,0.011347]
[1766148521853,0.0113452,88192.0,88171.0,0.00568]
[1766148522167,0.0113452,88192.0,88177.0,0.0113469]
[1766148522352,0.0113452,88192.0,88178.0,0.00568]
[1766148522748,0.00568,88201.0,88178.0,0.00568]
[1766148523055,0.0113453,88191.0,88178.0,0.00568]
[1766148523454,0.0113453,88191.0,88180.0,0.50971357]
[1766148523659,0.0113453,88191.0,88178.0,0.00568]
[1766148523852,0.0113453,88191.0,88180.0,0.50971357]
[1766148524156,0.00568,88201.0,88180.0,0.50971357]
[1766148524356,0.00568,88201.0,88178.0,0.00568]
[1766148524357,0.0113444,88198.0,88178.0,0.00568]
[1766148524547,0.50971357,88200.0,88170.0,0.50971357]
[1766148524753,0.0113462,88184.0,88171.0,0.00176]
[1766148525049,0.0113462,88184.0,88170.0,0.50971357]
[1766148525050,0.0113462,88184.0,88172.0,0.00568]
[1766148525256,0.0113458,88187.0,88172.0,0.00568]
[1766148525450,0.011346,88185.0,88172.0,0.00568]
[1766148527556,0.0113456,88188.0,88172.0,0.00568]
[1766148528364,0.0113459,88186.0,88172.0,0.00568]
[1766148530267,0.0113462,88184.0,88172.0,0.00568]
[1766148531163,0.0113464,88182.0,88172.0,0.00568]
[1766148531556,0.0113461,88185.0,88172.0,0.00568]
[1766148532556,0.0113461,88185.0,88172.0,0.0170276]
[1766148532961,0.0113461,88185.0,88172.0,0.0113476]
[1766148533164,0.0113461,88185.0,88173.0,0.00568]
[1766148533363,0.0113461,88185.0,88174.0,0.00568]
[1766148533564,0.0113457,88188.0,88174.0,0.0170274]
[1766148533765,0.0170252,88191.0,88178.0,0.50971357]
[1766148534367,0.00568,88191.0,88179.0,0.0113468]
[1766148534963,0.00568,88191.0,88181.0,0.0113464]
[1766148535170,2.38348,88217.0,88181.0,0.51539357]
[1766148535370,0.0113438,88202.0,88190.0,0.50971357]
[1766148535570,0.0113441,88200.0,88190.0,0.50971357]
[1766148535770,0.0149039,88202.0,88190.0,0.50971357]
[1766148536358,0.0113442,88199.0,88190.0,0.50971357]
[1766148536761,0.0113441,88200.0,88190.0,0.50971357]
[1766148537572,0.00356,88202.0,88188.0,0.00017008]
[1766148537775,0.00356,88202.0,88190.0,0.5096166]
[1766148538680,0.0113442,88199.0,88190.0,0.5096166]
[1766148539174,0.0113439,88201.0,88188.0,0.00017008]
[1766148539370,0.0113439,88201.0,88190.0,0.5096166]
[1766148539572,0.0113442,88199.0,88190.0,0.5096166]
[1766148540275,0.0149039,88202.0,88190.0,0.5096166]
[1766148540572,0.0113441,88200.0,88190.0,0.5096166]
[1766148541372,0.00356,88202.0,88190.0,0.5096166]
[1766148541574,0.00356,88202.0,88188.0,0.00017008]
[1766148541769,0.0113455,88190.0,88187.0,0.00568]
[1766148541976,0.0113455,88190.0,88180.0,0.5096166]
[1766148542279,0.0113452,88191.0,88180.0,0.5096166]
[1766148542577,0.0113452,88191.0,88181.0,0.00568]
[1766148542775,0.0113449,88194.0,88181.0,0.00568]
[1766148543175,0.01151457,88195.0,88181.0,0.0170265]
[1766148543377,0.00016977,88195.0,88183.0,0.0113462]
[1766148543576,0.01151447,88195.0,88181.0,0.00568]
[1766148543876,0.011345,88193.0,88181.0,0.00568]
[1766148544276,0.00016977,88195.0,88181.0,0.00568]
[1766148544479,0.01151447,88195.0,88181.0,0.00568]
[1766148545081,0.011345,88193.0,88181.0,0.00568]
[1766148546380,0.00016977,88195.0,88181.0,0.0170265]
[1766148546580,0.0113448,88194.0,88181.0,0.0170265]
[1766148546781,0.00016977,88195.0,88183.0,0.0113462]
[1766148546981,0.00016977,88195.0,88184.0,0.00568]
[1766148547386,0.0242068,88194.0,88184.0,0.00568]
[1766148547687,0.00016977,88195.0,88184.0,0.00568]
[1766148547892,0.02420687,88194.0,88184.0,0.00568]
[1766148548193,0.011345,88193.0,88184.0,0.00568]
[1766148548788,0.0113454,88190.0,88184.0,0.00568]
[1766148549490,0.0113457,88188.0,88185.0,0.00568]
[1766148549674,0.0113463,88183.0,88181.0,0.00568009]
[1766148549988,0.0113463,88183.0,88179.0,0.00568]
[1766148550891,0.0113459,88186.0,88179.0,0.00568]
[1766148552201,0.0113456,88189.0,88179.0,0.00568]
[1766148552390,0.017025,88193.0,88179.0,0.5152966]
[1766148552579,0.00568,88193.0,88179.0,0.5152966]
[1766148552891,0.017025,88193.0,88179.0,0.5152966]
[1766148553281,0.00568,88193.0,88177.0,0.00017008]
[1766148553487,0.0113461,88184.0,88177.0,0.00017008]
[1766148554889,0.0113464,88182.0,88177.0,0.00017008]
[1766148555079,0.011347,88178.0,88174.0,0.00568]
[1766148555280,0.011347,88178.0,88171.0,0.00568]
[1766148555976,0.0113472,88176.0,88166.0,0.00568]
[1766148557291,0.0113471,88177.0,88166.0,0.00568]
[1766148557688,0.00017008,88180.0,88166.0,0.00568]
[1766148558082,0.0113471,88177.0,88166.0,0.00568]
[1766148559184,0.01151678,88180.0,88166.0,0.00568]
[1766148559493,0.0113469,88178.0,88166.0,0.00568]
[1766148560302,0.01151678,88180.0,88166.0,0.00568]
[1766148560600,0.01151678,88180.0,88170.0,0.5096166]
[1766148562197,8e-08,88180.0,88170.0,0.5096166]
[1766148562395,8e-08,88180.0,88171.0,0.0113478]
[1766148562593,8e-08,88180.0,88170.0,0.5096166]
[1766148564502,0.0113474,88175.0,88166.0,0.00568]
[1766148564882,0.0113476,88173.0,88166.0,0.00568]
[1766148565490,0.0113475,88174.0,88166.0,0.00568]
[1766148565891,0.0113475,88174.0,88162.0,0.00017008]
[1766148566091,0.0113475,88174.0,88163.0,0.00568]
[1766148567210,0.0113477,88172.0,88162.0,0.00017008]
[1766148567397,0.0113483,88168.0,88162.0,8e-08]
[1766148567699,0.0113481,88169.0,88162.0,8e-08]
[1766148568203,0.00568,88175.0,88162.0,8e-08]
[1766148568591,0.0113484,88166.0,88162.0,8e-08]
[1766148569099,0.0113482,88169.0,88162.0,8e-08]
[1766148570498,0.0113483,88167.0,88162.0,8e-08]
[1766148570805,0.011348,88169.0,88162.0,8e-08]
[1766148571105,0.0113483,88167.0,88162.0,8e-08]
[1766148573093,0.00568,88175.0,88162.0,8e-08]
[1766148573492,8e-08,88180.0,88165.0,0.5096166]
[1766148573690,8e-08,88180.0,88170.0,0.5096166]
[1766148574390,8e-08,88180.0,88171.0,0.0113478]
[1766148576809,8e-08,88180.0,88170.0,0.5096166]
[1766148577304,8e-08,88180.0,88177.0,0.0113469]
[1766148577710,0.00224,88191.0,88181.0,0.0113464]
[1766148578009,0.00224,88191.0,88178.0,0.0113468]
[1766148579500,0.00224,88191.0,88180.0,0.0113466]
[1766148580901,0.00224,88191.0,88177.0,0.0113469]
[1766148581106,0.0135853,88191.0,88176.0,0.00017008]
[1766148581293,0.0113454,88190.0,88176.0,0.00017008]
[1766148581497,0.0135853,88191.0,88176.0,0.00017008]
[1766148581699,0.5096166,88190.0,88176.0,0.00017008]
[1766148582009,0.5096166,88190.0,88176.0,0.01151718]
[1766148582398,0.0113455,88189.0,88176.0,0.00017008]
[1766148583201,0.0113458,88187.0,88176.0,0.00017008]
[1766148583707,0.5096166,88190.0,88176.0,0.00017008]
[1766148584004,0.5096166,88186.0,88176.0,8e-08]
[1766148584200,0.0113465,88181.0,88176.0,8e-08]
[1766148585009,0.0113468,88179.0,88176.0,8e-08]
[1766148586994,0.00568,88178.0,88176.0,8e-08]
[1766148597015,0.00017008,88193.0,88176.0,8e-08]
[1766148597219,0.02996684,88192.0,88176.0,8e-08]
[1766148597416,0.02428684,88191.0,88176.0,8e-08]
[1766148597718,0.52123302,88190.0,88176.0,8e-08]
[1766148597917,0.0113464,88182.0,88176.0,8e-08]
[1766148598118,0.00568,88181.0,88176.0,8e-08]
[1766148600917,0.0113466,88180.0,88176.0,8e-08]
[1766148601715,0.00568,88181.0,88176.0,8e-08]
[1766148602317,0.0170265,88181.0,88176.0,8e-08]
[1766148605021,0.0113468,88179.0,88176.0,8e-08]
[1766148606019,0.0170266,88181.0,88176.0,8e-08]
[1766148607328,0.0113468,88179.0,88176.0,8e-08]
[1766148607517,0.011348,88170.0,88153.0,0.06690174]
[1766148607716,0.00568,88169.0,88153.0,0.00568]
[1766148607916,0.0113485,88166.0,88153.0,0.00568]
[1766148608117,0.00568,88165.0,88153.0,0.00568]
[1766148608723,0.00568,88165.0,88153.0,0.01703]
[1766148610127,0.00568,88165.0,88155.0,0.0113498]
[1766148613428,0.00568,88165.0,88153.0,0.00568]
[1766148613630,0.00568,88165.0,88156.0,0.0113497]
[1766148614425,0.00568,88165.0,88157.0,0.0113495]
[1766148617025,0.00568,88165.0,88153.0,0.00568]
[1766148617227,0.011349,88162.0,88150.0,0.00017008]
[1766148617440,0.00568,88165.0,88150.0,0.00017008]
[1766148617929,0.0113493,88160.0,88150.0,0.00017008]
[1766148618231,0.0113496,88157.0,88141.0,0.0170316]
[1766148618532,0.0113499,88155.0,88141.0,0.00568]
[1766148619634,0.0113499,88155.0,88142.0,0.0113515]
[1766148620840,0.00568,88157.0,88141.0,0.00568]
[1766148623241,0.0170297,88157.0,88141.0,0.00568]
[1766148623444,0.00568,88157.0,88144.0,0.0113512]
[1766148623743,0.00568,88157.0,88141.0,0.00568]
[1766148624048,0.00428,88158.0,88153.0,0.0113501]
[1766148626048,0.00428,88158.0,88106.0,0.1421009]
[1766148626251,0.51008089,88133.0,88098.0,0.00227021]
[1766148626549,0.00568,88132.0,88115.0,0.0113549]
[1766148626748,0.00568,88132.0,88099.0,2.38464]
[1766148626749,0.0113534,88128.0,88113.0,0.0113552]
[1766148627052,0.0113534,88128.0,88107.0,0.00072]
[1766148627348,0.00017017,88126.0,88109.0,0.00017017]
[1766148627550,0.00568,88125.0,88109.0,0.00017017]
[1766148627748,0.00568,88125.0,88111.0,0.0113554]
[1766148628236,0.00568,88125.0,88113.0,0.0113552]
[1766148630345,0.00568,88125.0,88109.0,0.00017017]
[1766148631350,0.51008089,88120.0,88089.0,2.38432]
[1766148631553,0.0113563,88105.0,88098.0,2.1e-07]
[1766148631940,0.0113567,88102.0,88098.0,2.1e-07]
[1766148632144,0.0113578,88094.0,88075.0,0.0113601]
[1766148632451,0.0113581,88092.0,88076.0,0.00568]
[1766148633258,0.52143919,88090.0,88076.0,0.00568]
[1766148633848,0.0113585,88088.0,88075.0,0.00011433]
[1766148634151,0.00568,88089.0,88075.0,4.33e-06]
[1766148634746,0.0113585,88088.0,88075.0,4.33e-06]
[1766148635958,0.0113589,88085.0,88075.0,4.33e-06]
[1766148636161,0.0170385,88089.0,88075.0,4.33e-06]
[1766148637262,0.00011067,88091.0,88075.0,4.33e-06]
[1766148637561,0.51008089,88110.0,88083.0,0.0113591]
[1766148637866,0.00568,88109.0,88083.0,0.0113591]
[1766148638053,0.51008089,88100.0,88083.0,0.0113591]
[1766148638254,0.00568,88099.0,88083.0,0.0113591]
[1766148638457,0.00568,88099.0,88082.0,0.00017028]
[1766148639551,0.00568,88099.0,88082.0,0.01152948]
[1766148639747,0.00568,88099.0,88085.0,0.0113588]
[1766148639965,0.51025117,88100.0,88085.0,0.0113588]
[1766148639966,0.00568,88098.0,88085.0,0.0113588]
[1766148640355,0.00568,88098.0,88082.0,0.00017028]
[1766148641653,0.00568,88098.0,88083.0,0.011359]
[1766148643759,0.00568,88098.0,88082.0,0.00017028]
[1766148644147,0.0113574,88097.0,88082.0,0.00017028]
[1766148646267,0.0113577,88094.0,88082.0,0.00017028]
[1766148646565,0.0113574,88097.0,88082.0,0.00017028]
[1766148649869,0.00568,88098.0,88082.0,0.00017028]
[1766148650070,0.0113576,88095.0,88082.0,2.8e-07]
[1766148650368,0.51091519,88092.0,88082.0,2.8e-07]
[1766148650568,0.0113576,88095.0,88082.0,2.8e-07]
[1766148655670,0.0113576,88095.0,88074.0,0.002]
[1766148655869,0.0113579,88093.0,88074.0,0.002]
[1766148656371,0.0113579,88093.0,88079.0,0.0113596]
[1766148656762,0.0113582,88091.0,88077.0,0.0113598]
[1766148657070,0.51091519,88090.0,88077.0,0.0113598]
[1766148657265,0.0113584,88089.0,88074.0,0.0133602]
[1766148657457,0.00568,88089.0,88059.0,0.0113622]
[1766148657664,0.51091519,88080.0,88060.0,0.00356]
[1766148657860,0.01153008,88079.0,88060.0,0.00356]
[1766148658062,0.00017028,88079.0,88069.0,0.0113609]
[1766148658262,0.00017028,88079.0,88060.0,0.51447519]
[1766148658470,0.00017028,88079.0,88061.0,0.0113618]
[1766148658776,0.00017028,88079.0,88068.0,0.011361]
[1766148658963,0.00249028,88079.0,88068.0,0.011361]
[1766148660266,0.00249028,88079.0,88070.0,0.0113607]
[1766148662272,0.00249028,88079.0,88066.0,0.0113612]
[1766148662474,0.00249028,88079.0,88068.0,0.011361]
[1766148662673,0.00249028,88079.0,88070.0,0.0113608]
[1766148662868,0.00249028,88079.0,88069.0,0.0113608]
[1766148663168,0.00017028,88079.0,88069.0,0.0113608]
[1766148663372,0.00568,88078.0,88071.0,0.0113606]
[1766148664166,0.00568,88080.0,88075.0,0.01136]
[1766148664577,0.00568,88080.0,88062.0,0.0113618]
[1766148664869,0.00568,88080.0,88072.0,0.0113605]
[1766148666774,0.00017028,88085.0,88072.0,0.0113605]
[1766148666980,0.00017028,88085.0,88074.0,0.0113602]
[1766148667177,0.06090362,88109.0,88070.0,0.51091519]
[1766148667385,0.02605891,88108.0,88090.0,0.51091519]
[1766148667680,0.02605891,88107.0,88101.0,0.0113567]
[1766148668174,0.02605891,88106.0,88101.0,0.0113567]
[1766148668495,0.00585028,88112.0,88098.0,0.0113571]
[1766148668670,0.02583915,88111.0,88098.0,0.0113571]
[1766148668871,0.02583915,88110.0,88098.0,0.0113571]
[1766148669173,0.02583915,88109.0,88099.0,0.011357]
[1766148669375,0.02583915,88108.0,88099.0,0.011357]
[1766148669585,0.51091519,88110.0,88099.0,0.011357]
[1766148669769,0.02583194,88109.0,88099.0,0.011357]
[1766148670070,0.02583194,88108.0,88095.0,0.00017028]
[1766148670378,0.00017028,88112.0,88105.0,0.0113562]
[1766148670569,0.0113542,88122.0,88095.0,0.00017028]
[1766148670570,0.51091519,88130.0,88116.0,0.0113548]
[1766148670768,0.0113534,88128.0,88111.0,0.0113554]
[1766148671064,0.0113534,88128.0,88108.0,0.0113558]
[1766148671262,0.0113537,88126.0,88108.0,0.0113558]
[1766148671467,0.0113537,88126.0,88108.0,0.00017028]
[1766148671468,0.00017028,88126.0,88108.0,0.00017028]
[1766148671662,0.00017028,88126.0,88101.0,0.00568]
[1766148671663,0.51091519,88120.0,88101.0,0.00568]
[1766148671878,0.51091519,88111.0,88101.0,0.00568]
[1766148672078,0.51091519,88111.0,88095.0,0.0142776]
[1766148672470,0.51091519,88111.0,88095.0,0.00292]
[1766148673879,0.011356,88108.0,88095.0,0.00292]
[1766148674071,0.52227079,88111.0,88095.0,0.00292]
[1766148674271,0.51091519,88111.0,88095.0,0.0142776]
[1766148674976,0.00017028,88112.0,88100.0,0.0113568]
[1766148675573,0.00017028,88112.0,88100.0,0.52227199]
[1766148675974,0.00017028,88112.0,88096.0,0.0113573]
[1766148676166,0.51091519,88110.0,88095.0,0.00292]
[1766148676372,0.0170358,88109.0,88095.0,0.00292]
[1766148678188,0.00568,88109.0,88095.0,0.00292]
[1766148679373,0.0170359,88109.0,88095.0,0.00292]
[1766148679579,0.0113561,88107.0,88095.0,0.00292]
[1766148679780,0.0113567,88103.0,88088.0,0.00568]
[1766148679976,0.00568,88102.0,88088.0,0.00568]
[1766148681283,0.011357,88100.0,88088.0,0.00568]
[1766148681682,0.00568,88102.0,88088.0,0.00568]
[1766148682081,0.00226918,88138.0,88098.0,0.0113571]
[1766148682276,0.00568,88144.0,88128.0,0.52211353]
[1766148682471,0.00568,88144.0,88133.0,0.0113526]
[1766148682678,0.0113478,88171.0,88130.0,0.51076023]
[1766148682679,0.0113495,88158.0,88130.0,0.51076023]
[1766148682878,0.00568,88157.0,88142.0,0.0113514]
[1766148683078,0.00017017,88158.0,88142.0,0.0113514]
[1766148683380,0.00017017,88158.0,88141.0,0.00017017]
[1766148683381,0.0113496,88157.0,88141.0,0.00017017]
[1766148683575,0.00017017,88158.0,88141.0,0.00017017]
[1766148683779,0.00017017,88158.0,88132.0,2.38544]
[1766148684088,0.0113509,88147.0,88133.0,0.00568]
[1766148684886,0.00568,88154.0,88133.0,0.00568]
[1766148686188,0.00568,88154.0,88134.0,0.00568]
[1766148687096,0.0113512,88145.0,88134.0,0.00568]
[1766148687674,0.0113521,88138.0,88130.0,0.00533869]
[1766148687890,0.0113521,88138.0,88130.0,0.00568]
[1766148688979,0.0113524,88135.0,88109.0,8.547e-05]
[1766148689290,0.0113528,88132.0,88110.0,0.00568]
[1766148689885,0.0170325,88135.0,88115.0,0.0113549]
[1766148690678,0.0170325,88135.0,88117.0,0.0113546]
[1766148690880,0.0170325,88135.0,88118.0,0.00568]
[1766148693476,0.0113529,88132.0,88118.0,0.00568]
[1766148694090,0.0113528,88132.0,88118.0,0.00568]
[1766148694889,0.00568,88135.0,88056.0,0.1136]
[1766148695086,0.51014696,88110.0,88069.0,2.38484]
[1766148695286,0.0113545,88119.0,88069.0,2.38484]
[1766148695287,0.0113582,88091.0,88071.0,0.0113606]
[1766148695491,0.00568,88091.0,88070.0,0.00568]
[1766148695691,0.0113591,88084.0,88070.0,0.00568]
[1766148695898,0.0113591,88084.0,88040.0,0.08146624]
[1766148695899,0.01144467,88083.0,88060.0,2.38484]
[1766148696196,0.00017028,88080.0,88066.0,0.00568]
[1766148696984,0.00017028,88080.0,88066.0,0.0170412]
[1766148697193,0.00017028,88080.0,88066.0,0.00568]
[1766148698086,0.01136,88076.0,88066.0,0.00568]
[1766148698287,0.01152988,88080.0,88066.0,0.00568]
[1766148698481,0.0113603,88074.0,88052.0,0.0113631]
[1766148698683,0.0113603,88074.0,88037.0,2.38512]
[1766148698684,0.00568,88074.0,88037.0,2.38512]
[1766148698995,0.00568,88074.0,88028.0,2.38516]
[1766148698996,0.0113634,88050.0,88028.0,2.38516]
[1766148699194,0.51014696,88060.0,88035.0,9.753e-05]
[1766148699195,8.547e-05,88049.0,88035.0,9.753e-05]
[1766148699390,0.0113637,88048.0,88035.0,9.753e-05]
[1766148702896,0.0113637,88048.0,88033.0,0.00572]
[1766148703696,8.547e-05,88049.0,88033.0,0.00572]
[1766148703902,8.547e-05,88049.0,88029.0,0.0113661]
[1766148704601,0.01144897,88049.0,88028.0,2.38516]
[1766148704790,0.011364,88046.0,88028.0,2.38516]
[1766148704987,0.017084,88046.0,88027.0,0.00572]
[1766148705201,0.0113643,88043.0,88027.0,0.00572]
[1766148706192,0.0113652,88036.0,88018.0,2.28e-06]
[1766148706393,0.0113656,88033.0,88018.0,2.28e-06]
[1766148707501,0.00572,88035.0,88018.0,2.28e-06]
[1766148707502,0.0113664,88027.0,88018.0,2.28e-06]
[1766148707701,0.0113667,88025.0,88010.0,2.28e-06]
[1766148707902,0.75053958,88020.0,87992.0,0.06239312]
[1766148708104,0.75053958,88010.0,87992.0,0.06239312]
[1766148708296,0.00572,88009.0,87992.0,0.06239312]
[1766148708796,0.00572,88009.0,87987.0,0.0170914]
[1766148709505,0.00404,88008.0,87987.0,0.0170914]
[1766148709898,0.00404,88008.0,87991.0,0.011371]
[1766148710098,0.00204,88007.0,87999.0,0.0113699]
[1766148710408,0.00204,88007.0,87995.0,0.0113704]
[1766148710805,0.00121038,88012.0,87995.0,0.00572]
[1766148711700,0.00017038,88012.0,87995.0,0.00572]
[1766148712304,0.00017038,88012.0,87999.0,0.0113699]
[1766148713513,0.00013038,88012.0,87999.0,0.0113699]
[1766148714811,0.00013038,88012.0,87997.0,4.489e-05]
[1766148715614,0.0113688,88009.0,87997.0,4.89e-06]
[1766148716409,0.0093688,88009.0,87997.0,4.89e-06]
[1766148718205,0.00013038,88012.0,87997.0,4.89e-06]
[1766148718811,0.0113688,88008.0,87997.0,4.89e-06]
[1766148719607,0.0113692,88006.0,87997.0,4.89e-06]
[1766148719807,0.0113689,88008.0,87997.0,4.89e-06]
[1766148720005,0.0113692,88006.0,87997.0,4.89e-06]
[1766148720213,0.0113687,88009.0,87997.0,4.89e-06]
[1766148720513,0.00013038,88012.0,87997.0,4.89e-06]
[1766148720916,0.0113693,88005.0,87997.0,4.89e-06]
[1766148721112,0.0170893,88005.0,87997.0,4.89e-06]
[1766148721908,0.00572,88005.0,87997.0,4.89e-06]
[1766148722609,0.00013038,88012.0,88000.0,0.0113698]
[1766148722808,0.00284,88011.0,88000.0,0.0113698]
[1766148723010,0.00572,88010.0,88000.0,0.0113698]
[1766148723915,0.00572,88010.0,87997.0,0.01137499]
[1766148724119,0.00572,88010.0,87997.0,4.89e-06]
[1766148724515,0.00572,88010.0,87998.0,0.0113701]
[1766148724712,0.00461038,88012.0,87997.0,4.89e-06]
[1766148725220,0.0113699,88000.0,87961.0,0.0113749]
[1766148725407,9.502e-05,87999.0,87979.0,0.0113725]
[1766148725813,9.502e-05,87999.0,87982.0,0.0113721]
[1766148726013,9.502e-05,87999.0,87987.0,0.0113715]
[1766148726523,9.502e-05,87999.0,87990.0,0.0113711]
[1766148726722,9.502e-05,87999.0,87985.0,0.0113717]
[1766148727216,9.502e-05,87999.0,87983.0,0.00572]
[1766148727613,0.0113705,87995.0,87983.0,0.00572]
[1766148727820,0.0113705,87995.0,87976.0,0.00572]
[1766148728012,0.00572,87995.0,87978.0,0.01364601]
[1766148728531,0.00572,87995.0,87981.0,0.0113722]
[1766148729539,0.00572,87995.0,87979.0,0.0113725]
[1766148729839,0.0113707,87994.0,87978.0,0.00227331]
[1766148730041,0.00572,87995.0,87974.0,0.0113731]
[1766148730232,0.00017048,87993.0,87974.0,0.0113731]
[1766148731231,0.00017048,87993.0,87972.0,0.00572]
[1766148731433,0.00017048,87993.0,87980.0,0.0113723]
[1766148731628,0.00017048,87993.0,87975.0,0.011373]
[1766148731830,0.00017048,87993.0,87972.0,0.00572]
[1766148732143,0.00572,87992.0,87976.0,0.0113728]
[1766148732641,0.00572,87992.0,87972.0,0.0170934]
[1766148732832,0.00572,87992.0,87975.0,0.011373]
[1766148733343,0.00572,87992.0,87972.0,0.00572]
[1766148734141,0.0113714,87989.0,87972.0,0.00572]
[1766148734449,0.00572,87992.0,87972.0,0.00572]
[1766148734744,0.0113715,87988.0,87972.0,0.00572]
[1766148734943,0.011371,87991.0,87973.0,0.0113732]
[1766148735146,0.02507118,87990.0,87973.0,0.0113732]
[1766148735444,0.00572,87992.0,87975.0,0.011373]
[1766148735649,0.02508476,87991.0,87972.0,0.0170934]
[1766148735944,0.02508476,87990.0,87972.0,0.0170934]
[1766148736145,0.02508476,87989.0,87972.0,0.0170934]
[1766148736340,0.02508476,87989.0,87972.0,0.00572]
[1766148736554,0.02508476,87988.0,87973.0,0.0113733]
[1766148736739,0.0113711,87991.0,87973.0,0.0113733]
[1766148736938,0.02510177,87990.0,87973.0,0.0113733]
[1766148737147,0.02510177,87989.0,87973.0,0.0113733]
[1766148737348,0.02510177,87988.0,87973.0,0.0113733]
[1766148737655,0.02510177,87987.0,87973.0,0.0113733]
[1766148737854,0.02510177,87986.0,87972.0,0.00572]
[1766148738051,0.01154128,87993.0,87977.0,0.0113728]
[1766148738254,0.02511373,87992.0,87982.0,0.0113721]
[1766148738555,3e-08,87991.0,87972.0,0.00572]
[1766148738850,0.00017048,87993.0,87986.0,0.0113716]
[1766148739037,0.00017048,87993.0,87973.0,0.0113732]
[1766148739038,0.011368,88015.0,87998.0,0.01137]
[1766148739242,0.0113682,88013.0,87989.0,0.00572]
[1766148739451,0.0113685,88011.0,87989.0,0.00572]
[1766148739643,0.0113687,88009.0,87993.0,0.0113707]
[1766148739842,0.0113687,88009.0,87990.0,0.011371]
[1766148740144,0.011369,88007.0,87991.0,0.00017048]
[1766148740658,0.00026351,88008.0,87992.0,0.0113709]
[1766148740949,0.01163241,88008.0,87992.0,0.0113709]
[1766148741244,0.01163241,88008.0,87991.0,0.00017048]
[1766148741450,0.0113691,88006.0,87991.0,0.00017048]
[1766148741649,0.00026351,88008.0,88002.0,0.0113696]
[1766148741850,0.00568,88013.0,87991.0,0.00017048]
[1766148742243,0.00568,88013.0,88003.0,0.0113694]
[1766148742439,0.00568,88013.0,88000.0,0.0113698]
[1766148742643,0.00568,88013.0,87991.0,0.00017048]
[1766148742644,0.00568,88013.0,87996.0,0.0113703]
[1766148742849,7.746e-05,88012.0,87996.0,0.0113703]
[1766148743443,7.746e-05,88012.0,87998.0,0.01137]
[1766148743855,7.746e-05,88012.0,87995.0,0.0113705]
[1766148744658,0.00464,88011.0,87995.0,0.0113705]
[1766148746655,0.0160085,88011.0,87995.0,0.0113705]
[1766148747544,0.00464,88011.0,87991.0,0.00017048]
[1766148749259,0.00464,88011.0,87997.0,0.0113701]
[1766148750343,0.00464,88011.0,87991.0,0.00017048]